bitfinex/quotes_SOLUSD_20230120
["timestamp","ask_amount","ask_price","bid_price","bid_amount"]
[1674253979274,137.07326951,25.092,25.06,17.0]
[1674253979488,137.07326951,25.092,25.061,20.96]
[1674253979692,137.07326951,25.092,25.062,17.0]
[1674253979904,113.3175,25.092,25.063,20.96]
[1674253980112,113.3175,25.092,25.064,17.0]
[1674253980317,36.80642,25.101,25.065,20.96]
[1674253980543,6.91642,25.101,25.066,17.0]
[1674253980863,6.91642,25.101,25.067,20.96]
[1674253981063,6.91642,25.101,25.068,17.0]
[1674253981275,6.91642,25.101,25.069,20.96]
[1674253981469,6.91642,25.101,25.07,17.0]
[1674253981676,6.91642,25.101,25.071,20.96]
[1674253981902,6.91642,25.101,25.072,17.0]
[1674253982114,6.91642,25.101,25.073,121.90786]
[1674253982322,2.66392,25.101,25.075,118.4]
[1674253982536,108.0906,25.131,25.076,158.90756]
[1674253982733,108.0906,25.131,25.077,2.54746]
[1674253982943,23.75576951,25.127,25.078,0.96]
[1674253983149,23.75576951,25.127,25.078,23.50735]
[1674253983363,44.45446951,25.127,25.078,100.15748075]
[1674253983577,23.75576951,25.126,25.079,16.00217566]
[1674253983792,23.75576951,25.126,25.08,20.96]
[1674253984001,23.75576951,25.126,25.08,81.60795509]
[1674253984227,23.75576951,25.126,25.081,76.65013075]
[1674253984427,23.75576951,25.126,25.082,0.96]
[1674253984638,23.75576951,25.126,25.082,97.61013075]
[1674253984848,108.0906,25.131,25.083,93.65013075]
[1674253985044,131.84636951,25.131,25.084,20.96]
[1674253985378,131.84636951,25.131,25.085,17.0]
[1674253985586,23.75576951,25.127,25.086,20.96]
[1674253985796,23.75576951,25.127,25.086,98.21686471]
[1674253985992,20.0,25.126,25.087,77.25686471]
[1674253986208,20.0,25.126,25.088,20.0]
[1674253986413,23.75576951,25.125,25.088,20.0]
[1674253986628,52.37689,25.124,25.088,20.0]
[1674253986838,2.51689,25.123,25.079,20.0]
[1674253987051,29.86,25.122,25.078,60.64795509]
[1674253987253,37.96,25.121,25.075,110.0186]
[1674253987458,29.86,25.12,25.075,110.0186]
[1674253987689,20.0,25.119,25.076,16.60890962]
[1674253987903,43.75576951,25.119,25.076,16.60890962]
[1674253988093,23.75576951,25.118,25.076,77.25686471]
[1674253988299,20.0,25.117,25.076,77.25686471]
[1674253988651,112.9659,25.128,25.077,185.58280899]
[1674253988839,112.9659,25.128,25.078,19.54735]
[1674253989037,112.9659,25.128,25.079,22.54725]
[1674253989245,112.9659,25.128,25.08,17.0]
[1674253989460,112.9659,25.128,25.081,20.0]
[1674253989680,112.9659,25.128,25.082,19.54695]
[1674253990000,112.9659,25.128,25.083,39.11575962]
[1674253990191,112.9659,25.128,25.084,19.54675]
[1674253990403,112.9659,25.128,25.085,3.50664]
[1674253990624,112.9659,25.128,25.086,2.54654]
[1674253990834,112.9659,25.128,25.086,142.97998908]
[1674253991028,112.9659,25.128,25.087,17.0]
[1674253991243,112.9659,25.128,25.088,20.0]
[1674253991468,112.9659,25.128,25.089,17.0]
[1674253991680,112.9659,25.128,25.09,20.0]
[1674253991877,112.9659,25.128,25.091,17.0]
[1674253992201,112.9659,25.128,25.092,20.96]
[1674253992394,112.9659,25.128,25.092,97.25686471]
[1674253992604,112.9659,25.128,25.092,80.64795509]
[1674253992819,23.75576951,25.127,25.093,60.64795509]
[1674253993137,112.9659,25.128,25.093,60.64795509]
[1674253993341,112.9659,25.128,25.094,20.0]
[1674253993553,112.9659,25.128,25.094,36.60890962]
[1674253993766,112.9659,25.128,25.095,77.25686471]
[1674253993969,112.9659,25.128,25.096,20.0]
[1674253994193,112.9659,25.128,25.096,115.21686471]
[1674253994499,112.9659,25.128,25.097,16.60890962]
[1674253994724,112.9659,25.128,25.098,37.46]
[1674253994933,112.9659,25.128,25.098,98.10795509]
[1674253995143,112.9659,25.128,25.099,77.25686471]
[1674253995359,43.268053,25.138,25.1,17.96]
[1674253995563,20.0,25.137,25.1,95.21686471]
[1674253995885,43.268053,25.138,25.101,77.25686471]
[1674253996077,43.268053,25.138,25.102,20.50492]
[1674253996291,43.268053,25.138,25.103,140.94482]
[1674253996498,43.268053,25.138,25.104,20.50472]
[1674253996832,43.268053,25.138,25.105,22.54462]
[1674253997150,43.268053,25.138,25.106,20.50451]
[1674253997354,43.268053,25.138,25.107,22.54441]
[1674253997547,43.268053,25.138,25.108,20.50431]
[1674253997752,43.268053,25.138,25.109,22.54421]
[1674253997967,43.268053,25.138,25.11,20.50411]
[1674253998173,43.268053,25.138,25.111,22.54401]
[1674253998400,43.268053,25.138,25.112,20.50391]
[1674253998612,43.268053,25.138,25.113,22.5438]
[1674253998824,43.268053,25.138,25.114,17.0]
[1674253999036,43.268053,25.138,25.115,20.96]
[1674253999254,43.268053,25.138,25.116,17.0]
[1674253999452,43.268053,25.138,25.117,0.96]
[1674253999649,43.268053,25.138,25.117,76.97653176]
[1674253999864,43.268053,25.138,25.118,75.70319842]
[1674254000081,151.622053,25.176,25.119,23.5032]
[1674254000082,29.8,25.175,25.119,23.5032]
[1674254000282,29.8,25.175,25.12,2.5431]
[1674254000493,29.8,25.175,25.121,119.36]
[1674254000708,29.8,25.175,25.122,140.94289]
[1674254001037,151.622053,25.176,25.124,118.4]
[1674254001252,151.622053,25.176,25.126,118.4]
[1674254001440,151.622053,25.176,25.127,22.54239]
[1674254001653,151.622053,25.176,25.128,3.50229]
[1674254001868,42.268053,25.176,25.129,120.94218]
[1674254002081,42.268053,25.176,25.13,158.90208]
[1674254002289,42.268053,25.176,25.131,2.54198]
[1674254002509,42.268053,25.176,25.132,0.96]
[1674254002716,42.268053,25.176,25.133,2.54178]
[1674254002924,42.268053,25.176,25.134,0.96]
[1674254003139,42.268053,25.176,25.135,2.54158]
[1674254003357,42.268053,25.176,25.136,0.96]
[1674254003544,42.268053,25.176,25.137,2.54138]
[1674254003755,42.268053,25.176,25.138,0.96]
[1674254003962,42.268053,25.176,25.139,2.54117]
[1674254004188,42.268053,25.176,25.14,0.96]
[1674254004407,42.268053,25.176,25.141,2.54097]
[1674254004595,42.268053,25.176,25.141,70.50046399]
[1674254004802,42.268053,25.176,25.142,20.0]
[1674254005012,42.268053,25.176,25.142,134.39446304]
[1674254005239,42.268053,25.176,25.143,114.39446304]
[1674254005454,42.268053,25.176,25.144,20.0]
[1674254005640,42.268053,25.176,25.144,134.39446304]
[1674254005850,42.268053,25.176,25.145,114.39446304]
[1674254006060,42.268053,25.176,25.146,37.96]
[1674254006273,42.268053,25.176,25.146,152.35446304]
[1674254006502,42.268053,25.176,25.146,168.96337266]
[1674254006710,42.268053,25.176,25.147,75.12402162]
[1674254006917,42.268053,25.176,25.148,17.96]
[1674254007130,42.268053,25.176,25.149,20.0]
[1674254007342,42.268053,25.176,25.15,0.96]
[1674254007555,42.268053,25.176,25.15,17.56890962]
[1674254007758,42.268053,25.176,25.151,20.0]
[1674254007968,42.268053,25.176,25.152,0.96]
[1674254008174,42.268053,25.176,25.152,16.60890962]
[1674254008385,42.268053,25.176,25.151,20.0]
[1674254008591,42.268053,25.176,25.138,20.0]
[1674254009534,151.468653,25.176,25.138,20.0]
[1674254009867,151.468653,25.176,25.109,118.4]
[1674254009868,73.55576951,25.175,25.109,118.4]
[1674254010062,17.0,25.174,25.117,120.4579]
[1674254010273,49.8,25.173,25.118,120.9433]
[1674254010499,20.0,25.173,25.119,2.5432]
[1674254010713,20.0,25.174,25.12,118.4]
[1674254010892,151.468653,25.176,25.121,2.54299]
[1674254011102,151.468653,25.176,25.121,19.36379171]
[1674254011338,151.468653,25.176,25.122,135.22080171]
[1674254011661,151.468653,25.176,25.124,118.4]
[1674254011989,151.468653,25.176,25.126,118.4]
[1674254012298,151.468653,25.176,25.128,118.4]
[1674254012512,151.468653,25.176,25.13,118.4]
[1674254012705,151.468653,25.176,25.132,118.4]
[1674254012908,151.468653,25.176,25.133,158.97568]
[1674254013121,151.468653,25.176,25.134,3.50168]
[1674254013352,42.268053,25.176,25.135,2.54158]
[1674254013542,42.268053,25.176,25.136,119.36]
[1674254013752,42.268053,25.176,25.137,39.54138]
[1674254013958,42.268053,25.176,25.138,3.50127]
[1674254014174,42.268053,25.176,25.139,2.54117]
[1674254014394,42.268053,25.176,25.14,0.96]
[1674254014610,42.268053,25.176,25.141,2.54097]
[1674254014829,42.268053,25.176,25.142,0.96]
[1674254015022,42.268053,25.176,25.143,2.54077]
[1674254015230,42.268053,25.176,25.143,114.87668371]
[1674254015558,42.268053,25.176,25.144,135.28859808]
[1674254015769,42.268053,25.176,25.145,37.0]
[1674254015960,42.268053,25.176,25.146,2.54047]
[1674254016169,42.268053,25.176,25.146,82.12305037]
[1674254016381,31.268053,25.176,25.148,118.4]
[1674254016589,20.914553,25.176,25.15,113.4]
[1674254016797,29.75,25.211,25.181,26.33504458]
[1674254017010,116.4404,25.212,25.182,20.96]
[1674254017233,116.4404,25.212,25.182,89.05653437]
[1674254017541,42.268053,25.214,25.183,131.53928208]
[1674254017763,92.55930436,25.27,25.184,23.49663]
[1674254018078,213.71948889,25.29,25.184,23.49663]
[1674254018079,129.90990169,25.276,25.214,84.536106]
[1674254018289,23.75576951,25.259,25.215,22.53351]
[1674254018501,29.71,25.251,25.216,0.96]
[1674254018729,115.3115,25.265,25.216,0.96]
[1674254018730,29.69,25.264,25.216,82.58417903]
[1674254018903,29.71,25.251,25.217,125.25643445]
[1674254019118,29.71,25.251,25.218,37.96]
[1674254019330,29.69,25.264,25.218,180.03723616]
[1674254019644,29.69,25.264,25.219,77.45305713]
[1674254019862,29.69,25.264,25.22,37.96]
[1674254020071,1.68212744,25.265,25.221,27.39]
[1674254020271,1.68212744,25.265,25.222,23.49281]
[1674254020487,32.268053,25.252,25.223,2.53271]
[1674254020701,32.268053,25.252,25.224,0.96]
[1674254020917,32.268053,25.252,25.224,23.49261]
[1674254021120,32.268053,25.252,25.224,44.33887379]
[1674254021316,32.268053,25.252,25.225,60.84626379]
[1674254021531,32.268053,25.252,25.226,0.96]
[1674254021766,32.268053,25.252,25.226,44.33867379]
[1674254021989,32.268053,25.252,25.227,63.37857379]
[1674254022287,10.268053,25.252,25.228,44.33847379]
[1674254022512,10.268053,25.252,25.229,2.53211]
[1674254022710,10.268053,25.252,25.229,80.1991755]
[1674254023038,10.268053,25.252,25.23,170.69879595]
[1674254023239,10.268053,25.252,25.231,22.53191]
[1674254023460,10.268053,25.252,25.232,3.49181]
[1674254023659,10.268053,25.252,25.233,2.53171]
[1674254023874,10.268053,25.252,25.233,50.10493836]
[1674254024087,10.268053,25.252,25.195,129.90990169]
[1674254024088,29.71,25.251,25.204,27.15]
[1674254024280,20.0,25.25,25.223,74.18183247]
[1674254024486,29.71,25.249,25.215,50.10493836]
[1674254024708,20.0,25.248,25.215,50.10493836]
[1674254025033,49.24588,25.247,25.206,55.77901742]
[1674254025347,20.0,25.246,25.206,16.82080171]
[1674254025554,29.71,25.245,25.206,16.82080171]
[1674254025747,20.0,25.244,25.206,66.92574007]
[1674254025961,20.0,25.244,25.207,75.77901742]
[1674254025962,29.72,25.243,25.207,75.77901742]
[1674254026274,29.72,25.243,25.208,75.13403913]
[1674254026500,111.9982,25.248,25.209,20.0]
[1674254026713,49.71,25.247,25.21,2.53402]
[1674254027029,29.71,25.247,25.211,16.82080171]
[1674254027245,20.0,25.246,25.212,20.0]
[1674254027429,29.71,25.245,25.213,17.0]
[1674254027637,20.0,25.244,25.213,139.70475749]
[1674254027855,29.71,25.245,25.214,72.59981913]
[1674254028066,29.71,25.247,25.214,122.70475749]
[1674254028374,20.0,25.246,25.215,105.88395578]
[1674254028587,29.71,25.245,25.215,105.88395578]
[1674254028811,20.0,25.244,25.216,50.10493836]
[1674254029019,20.0,25.244,25.216,66.92574007]
[1674254029215,20.0,25.244,25.217,16.82080171]
[1674254029426,20.0,25.246,25.217,66.92574007]
[1674254029649,29.71,25.245,25.218,20.0]
[1674254029856,10.268053,25.252,25.219,0.96]
[1674254030061,10.268053,25.252,25.219,117.29452625]
[1674254030272,10.268053,25.252,25.22,53.82080171]
[1674254030497,10.268053,25.252,25.221,0.96]
[1674254030498,5.268053,25.252,25.221,0.96]
[1674254030706,5.268053,25.252,25.222,2.53281]
[1674254030919,5.268053,25.252,25.223,0.96]
[1674254031106,5.268053,25.252,25.224,2.53261]
[1674254031317,5.268053,25.252,25.225,0.96]
[1674254031652,5.268053,25.252,25.225,188.02968795]
[1674254031866,5.268053,25.252,25.226,184.06968795]
[1674254032060,5.268053,25.252,25.227,20.96]
[1674254032389,5.268053,25.252,25.228,57.69180712]
[1674254032602,5.268053,25.252,25.229,0.96]
[1674254032912,5.268053,25.252,25.23,38.15959712]
[1674254033127,5.268053,25.252,25.231,40.49191]
[1674254033439,5.268053,25.252,25.232,2.53181]
[1674254033627,5.268053,25.252,25.233,0.96]
[1674254033856,5.268053,25.252,25.234,2.53161]
[1674254034067,29.67,25.283,25.235,0.96]
[1674254034277,29.67,25.283,25.236,2.53141]
[1674254034488,29.67,25.283,25.237,0.96]
[1674254034713,112.1635,25.284,25.237,0.96]
[1674254034714,112.1635,25.284,25.238,2.53121]
[1674254034930,112.1635,25.284,25.24,118.4]
[1674254035137,112.1635,25.284,25.241,50.4809]
[1674254035326,112.1635,25.284,25.242,2.5308]
[1674254035544,72.928053,25.29,25.243,0.96]
[1674254035747,43.268053,25.29,25.244,29.5206]
[1674254035964,72.928053,25.29,25.245,20.96]
[1674254036167,43.268053,25.29,25.246,2.5304]
[1674254036377,43.268053,25.29,25.247,0.96]
[1674254036599,43.268053,25.29,25.248,2.5302]
[1674254036815,43.268053,25.29,25.249,0.96]
[1674254037032,43.268053,25.29,25.25,2.53]
[1674254037218,29.66,25.289,25.25,152.08084607]
[1674254037429,29.66,25.289,25.251,73.68497742]
[1674254037660,29.66,25.289,25.251,148.70538399]
[1674254037849,29.66,25.289,25.252,111.88458228]
[1674254038067,43.268053,25.29,25.253,20.0]
[1674254038277,68.928053,25.29,25.253,36.82080171]
[1674254038476,39.268053,25.29,25.254,16.82080171]
[1674254038687,20.0,25.289,25.255,20.0]
[1674254039238,20.0,25.289,25.245,36.82080171]
[1674254039552,49.66,25.289,25.246,16.82080171]
[1674254039740,49.66,25.289,25.247,20.0]
[1674254039950,17.0,25.288,25.236,37.59626379]
[1674254040263,52.20588,25.287,25.215,118.4]
[1674254040478,17.0,25.286,25.236,16.82080171]
[1674254040703,49.67,25.285,25.236,16.82080171]
[1674254041026,17.0,25.284,25.236,16.82080171]
[1674254041256,50.63,25.283,25.236,16.82080171]
[1674254041540,17.96,25.282,25.236,16.82080171]
[1674254041735,49.67,25.281,25.236,16.82080171]
[1674254041945,19.53588,25.28,25.226,37.59626379]
[1674254042159,49.67,25.279,25.227,2.53231]
[1674254042590,17.0,25.278,25.227,2.53231]
[1674254042785,49.68,25.277,25.228,54.4170655]
[1674254042996,49.68,25.277,25.228,16.82080171]
[1674254042997,20.49588,25.276,25.228,16.82080171]
[1674254043215,49.68,25.275,25.229,16.82080171]
[1674254043418,17.0,25.274,25.229,16.82080171]
[1674254043634,49.68,25.273,25.229,16.82080171]
[1674254043837,17.96,25.272,25.219,55.78231076]
[1674254044058,17.96,25.272,25.206,108.6939]
[1674254044059,52.21588,25.271,25.207,27.27]
[1674254044293,0.96,25.27,25.209,37.59626379]
[1674254044476,29.69,25.269,25.21,29.80402]
[1674254044686,29.69,25.269,25.211,22.53392]
[1674254044899,29.69,25.27,25.212,29.80382]
[1674254045101,20.0,25.269,25.213,20.0]
[1674254045315,29.69,25.268,25.214,148.19361]
[1674254045522,29.69,25.268,25.215,138.4]
[1674254045733,24.10993911,25.279,25.215,138.4]
[1674254045734,108.2359,25.272,25.216,29.79341]
[1674254045940,108.2359,25.272,25.217,22.53331]
[1674254046288,49.68,25.271,25.218,61.08080171]
[1674254046484,49.68,25.271,25.219,20.0]
[1674254046701,20.0,25.271,25.22,165.16301]
[1674254046907,20.0,25.271,25.221,2.53291]
[1674254047119,20.0,25.271,25.222,27.23]
[1674254047437,108.2359,25.272,25.223,19.53271]
[1674254047624,29.68,25.271,25.224,30.71261]
[1674254047833,108.2359,25.272,25.225,17.0]
[1674254048046,108.2359,25.272,25.226,20.0]
[1674254048370,108.2359,25.272,25.226,36.82080171]
[1674254048565,108.2359,25.272,25.227,16.82080171]
[1674254048790,108.2359,25.272,25.228,20.0]
[1674254049001,108.2359,25.272,25.229,17.96]
[1674254049212,108.2359,25.272,25.23,20.0]
[1674254049421,108.2359,25.272,25.231,17.96]
[1674254049632,108.2359,25.272,25.232,20.0]
[1674254049842,108.2359,25.272,25.233,17.96]
[1674254050058,20.0,25.271,25.234,20.0]
[1674254050262,20.0,25.271,25.235,17.96]
[1674254050473,108.2359,25.272,25.236,140.93141]
[1674254050702,108.2359,25.272,25.237,47.58131]
[1674254050889,108.2359,25.272,25.238,20.0]
[1674254051103,108.2359,25.272,25.239,45.05]
[1674254051315,108.2359,25.272,25.24,20.0]
[1674254051540,108.2359,25.272,25.241,17.96]
[1674254051739,108.2359,25.272,25.242,20.0]
[1674254051942,108.2359,25.272,25.243,17.96]
[1674254052153,108.2359,25.272,25.244,20.0]
[1674254052375,108.2359,25.272,25.245,17.96]
[1674254052585,108.2359,25.272,25.246,20.0]
[1674254052808,108.2359,25.272,25.247,17.96]
[1674254053123,112.9835,25.284,25.248,20.0]
[1674254053341,112.9835,25.284,25.249,17.96]
[1674254053521,112.9835,25.284,25.25,48.9]
[1674254053725,112.9835,25.284,25.251,17.96]
[1674254053953,112.9835,25.284,25.252,20.0]
[1674254054172,112.9835,25.284,25.253,46.85]
[1674254054366,112.9835,25.284,25.254,20.0]
[1674254054689,112.9835,25.284,25.255,63.67080171]
[1674254054894,112.9835,25.284,25.244,49.97674008]
[1674254055218,29.67,25.283,25.219,129.90990169]
[1674254055415,29.67,25.283,25.201,117.0333]
[1674254055416,2.53588,25.282,25.201,117.0333]
[1674254055627,118.4,25.28,25.202,2.53482]
[1674254055844,32.20588,25.279,25.203,29.39]
[1674254056055,40.49588,25.278,25.204,2.53462]
[1674254056287,32.21588,25.277,25.206,118.4]
[1674254056593,37.0,25.276,25.208,118.4]
[1674254056772,29.68,25.275,25.21,118.4]
[1674254056982,37.0,25.274,25.212,118.4]
[1674254057194,29.68,25.273,25.214,118.4]
[1674254057518,20.0,25.272,25.216,118.4]
[1674254057725,29.68,25.271,25.218,118.4]
[1674254057956,53.43576951,25.271,25.22,118.4]
[1674254058165,53.43576951,25.271,25.221,31.90291]
[1674254058370,53.43576951,25.271,25.221,80.31855409]
[1674254058577,40.75576951,25.27,25.221,80.31855409]
[1674254058787,29.69,25.269,25.219,119.5328]
[1674254058989,17.0,25.268,25.219,119.5328]
[1674254059207,29.69,25.267,25.22,118.4]
[1674254059415,109.8942,25.272,25.222,118.4]
[1674254059733,109.8942,25.272,25.224,118.4]
[1674254059948,109.8942,25.272,25.226,118.4]
[1674254060136,109.8942,25.272,25.228,118.4]
[1674254060352,109.8942,25.272,25.23,118.4]
[1674254060560,109.8942,25.272,25.231,69.67191]
[1674254060777,109.8942,25.272,25.232,2.53181]
[1674254060992,23.75576951,25.279,25.233,148.54]
[1674254061201,0.54011691,25.291,25.234,266.42161]
[1674254061419,136.73926951,25.284,25.235,30.14]
[1674254061614,112.9835,25.284,25.236,17.0]
[1674254061828,136.73926951,25.284,25.237,49.82]
[1674254062036,23.75576951,25.283,25.238,17.0]
[1674254062241,29.67,25.282,25.239,49.82]
[1674254062576,53.05704204,25.281,25.239,48.86]
[1674254062768,29.30127253,25.281,25.239,20.0]
[1674254062975,29.30127253,25.281,25.234,108.49]
[1674254062976,112.9835,25.284,25.24,31.391]
[1674254063198,112.9835,25.284,25.241,22.5309]
[1674254063411,112.9835,25.284,25.243,118.4]
[1674254063618,112.9835,25.284,25.244,51.3806]
[1674254064243,112.9835,25.284,25.244,48.85]
[1674254064472,112.9835,25.284,25.244,20.0]
[1674254064677,112.9835,25.284,25.245,28.77]
[1674254064864,57.89304204,25.283,25.246,20.0]
[1674254065196,70.42576951,25.282,25.246,20.0]
[1674254065391,53.42576951,25.282,25.234,108.49]
[1674254065596,40.75576951,25.281,25.234,108.49]
[1674254065823,29.67,25.28,25.221,28.8]
[1674254066034,19.53588,25.279,25.222,226.8616]
[1674254066254,29.68,25.278,25.223,31.33271]
[1674254066441,17.0,25.277,25.223,31.33271]
[1674254066651,76.01132771,25.278,25.224,2.53261]
[1674254066862,29.67,25.283,25.226,118.4]
[1674254067095,34.13727253,25.277,25.227,149.72231]
[1674254067286,159.31482771,25.284,25.227,149.72231]
[1674254067287,29.67,25.281,25.227,149.72231]
[1674254067496,29.67,25.283,25.228,19.53221]
[1674254067702,20.0,25.282,25.229,149.91211]
[1674254067912,29.67,25.281,25.23,39.53201]
[1674254068147,29.67,25.281,25.231,28.98]
[1674254068336,29.67,25.281,25.232,37.96]
[1674254068548,34.13727253,25.28,25.233,28.98]
[1674254068759,29.67,25.279,25.234,20.0]
[1674254068981,76.00132771,25.279,25.234,20.0]
[1674254069193,37.77727253,25.278,25.229,16.82080171]
[1674254069410,20.0,25.282,25.23,169.91201]
[1674254069720,53.42576951,25.281,25.23,51.51201]
[1674254069927,37.77727253,25.281,25.23,51.51201]
[1674254070128,20.0,25.282,25.231,16.82080171]
[1674254070341,37.77727253,25.281,25.232,48.98]
[1674254070556,20.0,25.282,25.232,48.98]
[1674254070767,20.0,25.282,25.233,16.82080171]
[1674254070981,20.0,25.282,25.234,46.9]
[1674254071175,37.77727253,25.281,25.235,20.0]
[1674254071389,112.9835,25.284,25.236,46.89]
[1674254071596,37.77727253,25.281,25.236,63.71080171]
[1674254071807,112.9835,25.284,25.237,36.82080171]
[1674254072013,37.8639392,25.283,25.238,46.89]
[1674254072221,37.8639392,25.283,25.239,20.0]
[1674254072451,37.8639392,25.283,25.24,46.89]
[1674254072644,37.8639392,25.283,25.241,20.0]
[1674254072853,49.10466104,25.282,25.242,28.93]
[1674254073072,49.10466104,25.282,25.243,20.0]
[1674254073295,39.36129029,25.281,25.243,20.0]
[1674254073601,112.9835,25.284,25.243,20.0]
[1674254073814,112.9835,25.284,25.238,28.93]
[1674254074239,112.9835,25.284,25.239,36.82080171]
[1674254074428,112.9835,25.284,25.24,46.83]
[1674254074639,112.9835,25.284,25.241,20.0]
[1674254074850,143.76646296,25.284,25.242,46.83]
[1674254075078,143.76646296,25.284,25.243,20.0]
[1674254075287,143.76646296,25.284,25.244,17.96]
[1674254075609,143.76646296,25.284,25.245,20.0]
[1674254075818,143.76646296,25.284,25.246,17.96]
[1674254076027,143.76646296,25.284,25.247,20.0]
[1674254076423,167.52223247,25.284,25.247,20.0]
[1674254076639,46.83139438,25.283,25.238,48.92]
[1674254076849,112.9835,25.284,25.238,48.92]
[1674254077070,112.9835,25.284,25.238,65.74080171]
[1674254077268,112.9835,25.284,25.239,16.82080171]
[1674254077485,112.9835,25.284,25.24,48.92]
[1674254077693,30.78296296,25.283,25.24,20.0]
[1674254077899,20.0,25.282,25.24,20.0]
[1674254078120,20.0,25.282,25.241,16.82080171]
[1674254078327,20.0,25.282,25.242,20.0]
[1674254078544,20.0,25.283,25.242,20.0]
[1674254078858,20.0,25.283,25.243,16.82080171]
[1674254079051,30.78296296,25.282,25.243,16.82080171]
[1674254079263,26.78296296,25.282,25.243,16.82080171]
[1674254079490,112.9835,25.284,25.243,16.82080171]
[1674254079701,30.43629629,25.283,25.244,48.83]
[1674254080021,30.43629629,25.283,25.245,16.82080171]
[1674254080329,30.43629629,25.283,25.246,37.0]
[1674254080543,17.0,25.282,25.246,37.0]
[1674254080952,34.59629629,25.281,25.247,16.82080171]
[1674254081268,112.9835,25.284,25.248,20.0]
[1674254081812,112.9835,25.284,25.249,16.82080171]
[1674254081995,112.9835,25.284,25.25,0.96]
[1674254082213,34.59629629,25.283,25.25,20.96]
[1674254082421,34.59629629,25.283,25.251,17.0]
[1674254082637,34.59629629,25.283,25.252,0.96]
[1674254082861,112.9835,25.284,25.252,20.96]
[1674254083168,112.9835,25.284,25.253,33.82080171]
[1674254083378,112.9835,25.284,25.254,20.96]
[1674254083694,112.9835,25.284,25.255,17.0]
[1674254083883,112.9835,25.284,25.256,20.96]
[1674254084096,112.9835,25.284,25.257,17.0]
[1674254084309,112.9835,25.284,25.258,20.96]
[1674254084518,112.9835,25.284,25.259,17.0]
[1674254084720,112.9835,25.284,25.26,20.96]
[1674254084932,112.9835,25.284,25.261,17.0]
[1674254085147,112.9835,25.284,25.262,20.96]
[1674254085353,112.9835,25.284,25.263,17.0]
[1674254085578,112.9835,25.284,25.262,20.0]
[1674254085995,112.9835,25.284,25.254,20.0]
[1674254086200,112.9835,25.284,25.253,16.82080171]
[1674254086410,112.9835,25.284,25.255,16.82080171]
[1674254086852,112.9835,25.284,25.244,28.72]
[1674254087045,112.9835,25.284,25.245,16.82080171]
[1674254087255,112.9835,25.284,25.238,28.73]
[1674254087471,112.9835,25.284,25.239,16.82080171]
[1674254087886,17.0,25.283,25.239,16.82080171]
[1674254088096,112.9835,25.284,25.24,20.0]
[1674254088528,17.0,25.283,25.241,16.82080171]
[1674254088745,17.0,25.283,25.242,20.0]
[1674254089144,17.0,25.283,25.242,36.82080171]
[1674254089354,20.0,25.282,25.242,36.82080171]
[1674254089778,112.9835,25.284,25.242,36.82080171]
[1674254090558,112.9835,25.284,25.243,17.96]
[1674254090767,112.9835,25.284,25.244,20.0]
[1674254090974,112.9835,25.284,25.245,17.96]
[1674254091167,112.9835,25.284,25.246,20.0]
[1674254091376,112.9835,25.284,25.247,17.96]